bitfinex/quotes_ETHUSD_20220310
["timestamp","ask_amount","ask_price","bid_price","bid_amount"]
[1646920511470,0.43687767,2580.7,2580.5,0.00199512]
[1646920511867,0.43687767,2580.7,2580.3,0.25]
[1646920512266,0.43687767,2580.7,2580.4,0.00199516]
[1646920512724,0.94375543,2580.5,2580.4,0.00199516]
[1646920513118,0.07225307,2580.4,2580.0,1.0]
[1646920514522,0.05770426,2580.3,2580.0,1.0]
[1646920514720,0.05770426,2580.3,2580.1,0.00199543]
[1646920515520,0.05770426,2580.3,2580.0,1.0]
[1646920515721,0.93462063,2580.1,2580.0,1.0]
[1646920516870,0.05770426,2580.3,2580.0,1.0]
[1646920517071,0.06888657,2580.6,2580.0,1.0]
[1646920517772,0.43687767,2580.7,2580.1,0.06247114]
[1646920517974,1.19836137,2580.3,2580.1,0.05820836]
[1646920518174,1.19836137,2580.3,2580.0,1.0]
[1646920518175,0.06345251,2580.2,2580.0,1.0]
[1646920518871,0.06345251,2580.2,2580.0,0.99360154]
[1646920519372,0.06345251,2580.2,2580.0,0.99559704]
[1646920520231,0.06345251,2580.2,2579.0,0.00406304]
[1646920520421,3.884,2580.2,2579.0,0.00406304]
[1646920520620,83.0,2580.0,2579.0,0.00406304]
[1646920520817,14.98700608,2579.0,2578.8,0.00879908]
[1646920521019,0.06118336,2578.9,2578.8,0.03478692]
[1646920521218,1.0291751,2578.9,2578.8,0.03478692]
[1646920521632,0.06118336,2578.9,2578.8,0.03478692]
[1646920521820,14.98700608,2579.0,2578.8,0.03478692]
[1646920522221,0.0680018,2578.9,2578.8,0.03478692]
[1646920522824,14.98700608,2579.0,2578.8,0.03478692]
[1646920523021,15.98822188,2579.0,2578.8,0.03478692]
[1646920523225,16.04528159,2579.0,2578.8,0.03478692]
[1646920523422,15.98822188,2579.0,2578.8,0.03478692]
[1646920523822,0.07327066,2578.9,2578.8,0.03478692]
[1646920524070,69.5,2578.8,2578.5,0.01500808]
[1646920524272,0.07128146,2578.7,2578.5,0.08458192]
[1646920524465,1.18422954,2578.6,2578.5,0.08458192]
[1646920525367,1.18422954,2578.6,2578.4,0.00199171]
[1646920525368,56.0,2578.5,2578.4,0.00199171]
[1646920525569,56.0,2578.5,2578.0,0.0354856]
[1646920525570,0.06443151,2578.3,2578.0,0.0354856]
[1646920525766,0.06443151,2578.3,2577.7,0.01897704]
[1646920525767,0.26614415,2578.2,2577.7,0.01897704]
[1646920525969,0.05716817,2577.9,2577.6,0.03795408]
[1646920526170,0.2569106,2577.8,2577.6,0.03795408]
[1646920526365,0.0745792,2577.7,2577.6,0.03795408]
[1646920526566,1.11786146,2577.7,2577.6,0.03795408]
[1646920526769,1.41786146,2577.7,2577.4,0.03451296]
[1646920526971,0.0745792,2577.7,2577.4,0.03451296]
[1646920527168,2.3287828,2578.8,2577.4,0.03451296]
[1646920527169,0.0696103,2578.6,2577.4,0.03451296]
[1646920527366,0.0159828,2578.8,2577.4,0.03451296]
[1646920527568,0.0159828,2578.8,2577.5,0.27467278]
[1646920527825,1.16241,2578.7,2577.4,1.97514766]
[1646920528027,0.89773545,2577.5,2577.4,0.03451296]
[1646920528426,0.89773545,2577.5,2576.0,11.73]
[1646920528427,0.96985092,2577.5,2576.0,11.73]
[1646920528632,0.96985092,2577.5,2575.6,1.45112779]
[1646920528633,83.0,2577.2,2575.6,1.45112779]
[1646920528834,83.0,2577.2,2575.1,1.40946043]
[1646920528835,3.01259804,2576.9,2574.3,7.65235709]
[1646920529029,3.01259804,2576.9,2574.4,0.23922104]
[1646920529030,0.01212884,2576.0,2574.4,0.23922104]
[1646920529227,0.01212884,2576.0,2574.3,0.07808578]
[1646920529228,0.08193171,2575.9,2574.3,0.07808578]
[1646920529430,1.10252884,2576.0,2574.4,0.21273412]
[1646920529431,0.01223543,2575.0,2574.4,0.21273412]
[1646920529633,0.01223543,2575.0,2574.3,0.03880992]
[1646920529634,0.45330973,2575.6,2574.3,0.03880992]
[1646920529932,0.17540973,2575.6,2574.3,0.03880992]
[1646920530127,1.14694973,2575.6,2574.3,0.03880992]
[1646920530329,0.17540973,2575.6,2574.9,1.00842574]
[1646920530529,3.5,2575.8,2574.6,0.0019897]
[1646920530530,3.5,2576.0,2574.6,0.0019897]
[1646920530728,1.0,2576.5,2574.6,0.0019897]
[1646920530932,0.08226099,2576.3,2574.6,0.0019897]
[1646920531129,0.08226099,2576.3,2575.1,1.0]
[1646920531472,33.89588333,2576.4,2575.4,0.00198905]
[1646920531676,5.31301,2576.8,2575.4,0.30198905]
[1646920531677,2.91451,2576.8,2575.4,0.30198905]
[1646920531872,0.07086375,2576.7,2575.4,0.00198905]
[1646920532172,7.84053,2577.3,2575.4,0.00198905]
[1646920532173,0.0812202,2576.8,2575.4,0.00198905]
[1646920532371,0.45068078,2577.1,2575.4,0.00198905]
[1646920532568,3.5,2577.2,2574.2,0.0287574]
[1646920532569,0.06796283,2576.7,2574.2,0.0287574]
[1646920532776,0.06796283,2576.7,2574.2,0.2787574]
[1646920532777,0.08075901,2576.4,2574.2,0.2787574]
[1646920532972,0.28594075,2576.3,2574.5,1.0]
[1646920533174,0.09194075,2576.3,2574.2,0.2787574]
[1646920533373,0.97145,2575.9,2574.2,0.2787574]
[1646920533577,0.08145875,2575.8,2574.4,0.05]
[1646920533774,3.58145875,2575.8,2574.4,0.05]
[1646920533976,3.58145875,2575.8,2574.2,0.2787574]
[1646920533977,83.0,2575.7,2574.2,0.0787574]
[1646920534179,0.01261401,2574.9,2574.2,0.0287574]
[1646920534377,2.79699401,2574.9,2574.3,9.92e-06]
[1646920534576,1.03569556,2574.8,2574.2,6.732e-05]
[1646920534784,0.3,2574.5,2574.2,6.732e-05]
[1646920534976,6.68503401,2574.9,2574.2,6.732e-05]
[1646920534977,2.94403,2574.9,2574.2,6.732e-05]
[1646920535227,0.08335988,2574.8,2574.2,6.732e-05]
[1646920535415,0.07347288,2575.1,2574.2,6.732e-05]
[1646920535620,0.07347288,2575.1,2574.0,0.0172243]
[1646920535621,0.95412245,2574.5,2574.0,5.096e-05]
[1646920535816,0.97195,2574.9,2574.0,5.096e-05]
[1646920535817,1.03915687,2574.4,2574.0,5.096e-05]
[1646920536016,0.06891103,2574.3,2574.0,5.096e-05]
[1646920536220,79.5,2573.8,2573.7,0.01470192]
[1646920536419,79.5,2573.8,2573.4,2.152e-05]
[1646920536420,0.0487,2573.6,2573.4,2.152e-05]
[1646920536618,0.8923,2573.6,2573.4,2.152e-05]
[1646920536918,0.07275416,2573.5,2573.4,2.152e-05]
[1646920537118,0.00074904,2573.9,2573.4,2.152e-05]
[1646920537322,0.00074904,2573.9,2573.4,0.04037959]
[1646920538121,0.08252899,2573.9,2573.4,0.04037959]
[1646920538964,0.08252899,2573.9,2573.5,0.00195476]
[1646920539566,0.00074904,2573.9,2573.5,0.00195476]
[1646920539765,0.00074904,2573.9,2573.4,0.04037959]
[1646920539970,0.00074904,2573.9,2573.6,0.00194984]
[1646920540170,0.00074904,2573.9,2573.7,1.00310339]
[1646920541168,0.00074904,2573.9,2573.7,1.00505315]
[1646920541572,0.00074904,2573.9,2573.7,0.00194976]
[1646920541770,0.07189451,2573.9,2573.7,0.00194976]
[1646920542169,0.07189451,2573.9,2573.4,0.04035807]
[1646920542368,0.07189451,2573.9,2573.7,0.00194976]
[1646920542573,0.97194,2574.1,2573.7,0.00194976]
[1646920542574,0.0070983,2574.1,2573.7,0.00194976]
[1646920542823,1.94327,2574.8,2573.8,60.62471827]
[1646920543022,1.94327,2574.8,2573.8,1.12471827]
[1646920543222,0.05323245,2574.7,2574.0,0.06658177]
[1646920543624,1.94327,2574.8,2574.2,0.0019494]
[1646920544022,2.01823822,2574.9,2574.2,0.0019494]
[1646920544224,0.01941104,2574.9,2574.2,0.3019494]
[1646920544422,0.01941104,2574.9,2574.2,0.36018942]
[1646920544622,0.01941104,2574.9,2574.2,0.05824002]
[1646920544823,0.06868495,2575.4,2574.4,0.00194921]
[1646920545021,0.06868495,2575.4,2574.5,1.1204057]
[1646920546023,0.97164,2575.3,2574.8,0.0019489]
[1646920546222,1.02950976,2575.3,2574.8,0.0019489]
[1646920546463,0.06309058,2575.2,2574.8,0.0019489]
[1646920546865,0.06309058,2575.2,2574.5,1.1204057]
[1646920547067,0.06309058,2575.2,2574.3,0.00466146]
[1646920547268,0.06587973,2575.0,2574.9,0.00194887]
[1646920548068,0.06587973,2575.0,2574.3,0.00466146]
[1646920548268,0.97158,2574.9,2574.4,1.22745685]
[1646920548968,0.97158,2574.9,2574.4,1.59059074]
[1646920549567,0.97158,2574.9,2574.5,0.00194913]
[1646920549770,0.82158,2574.9,2574.5,0.00194913]
[1646920550224,0.82158,2574.7,2574.5,0.00194913]
[1646920550427,0.82158,2574.7,2574.3,0.00466146]
[1646920550822,0.82158,2574.7,2574.6,0.00195397]
[1646920551227,0.06602984,2574.6,2574.3,0.00466146]
[1646920552223,0.384,2574.5,2574.3,0.00466146]
[1646920552424,0.06134998,2574.4,2574.3,0.00466146]
[1646920552625,28.884,2574.3,2573.7,0.06]
[1646920552824,0.06621682,2574.2,2573.7,0.06]
[1646920554466,0.06621682,2574.2,2573.4,0.04035807]
[1646920554467,0.5276,2574.1,2573.4,0.04035807]
[1646920554665,0.384,2573.9,2573.4,0.04035807]
[1646920554964,2.53345514,2573.8,2573.4,0.04035807]
[1646920555165,0.06405238,2573.6,2573.4,0.04035807]
[1646920555668,1.03601238,2573.6,2573.5,0.00194988]
[1646920555872,0.97196,2573.6,2573.5,0.00194988]
[1646920556469,0.97196,2573.6,2573.4,0.03766043]
[1646920556470,47.35596,2573.6,2573.4,0.03766043]
[1646920556668,1.35596,2573.6,2573.4,0.03766043]
[1646920558322,29.384,2573.5,2573.3,0.05927564]
[1646920558520,3.30065,2573.5,2573.3,0.05927564]
[1646920558719,2.91665,2573.5,2573.3,0.05927564]
[1646920559123,3.88772,2574.4,2573.3,0.05927564]
[1646920559323,0.01912939,2573.6,2573.4,0.461]
[1646920559519,0.01912939,2573.6,2573.5,0.06925657]
[1646920560122,0.01912939,2573.6,2573.4,1.0]
[1646920560620,0.01912939,2573.6,2573.4,0.00194024]
[1646920561024,1.96306939,2573.6,2573.4,0.00194024]
[1646920561487,1.96306939,2573.6,2573.3,0.05927564]
[1646920562066,1.96306939,2573.6,2573.3,1.26698949]
[1646920562470,0.01912939,2573.6,2573.4,0.06319775]
[1646920562667,0.01912939,2573.6,2573.4,12.63819775]
[1646920562871,2.939e-05,2573.6,2573.5,15.67348744]
[1646920563070,2.939e-05,2573.6,2573.5,16.375]
[1646920563270,1.94316,2574.6,2573.5,17.375]
[1646920563471,1.94316,2574.6,2574.0,1.35559]
[1646920563680,0.9875728,2575.7,2574.2,3.384]
[1646920563682,0.0159828,2575.7,2574.2,3.384]
[1646920563874,1.9425665,2576.6,2574.4,12.114]
[1646920564074,1.21185978,2576.8,2574.7,12.114]
[1646920564373,1.21185978,2576.8,2575.7,0.97095]
[1646920564374,1.94214,2576.0,2575.7,0.97095]
[1646920564573,1.94214,2576.0,2575.1,1.9419668]
[1646920564772,1.94214,2576.0,2575.0,0.461]
[1646920564773,1.94214,2576.0,2575.0,0.761]
[1646920564973,2.91307,2576.5,2575.0,4.261]
[1646920565219,2.91307,2576.5,2575.5,1.13297493]
[1646920565421,1.94197,2576.2,2575.5,1.13297493]
[1646920565619,1.94197,2576.2,2575.2,1.0]
[1646920565620,2.32597,2576.2,2575.2,1.0]
[1646920566019,0.20258925,2576.1,2574.8,3.83687213]
[1646920566230,0.97121,2575.9,2574.9,0.461]
[1646920566421,0.01422336,2576.2,2575.0,3.5]
[1646920566627,0.01422336,2576.2,2575.5,12.114]
[1646920566925,0.01422336,2576.2,2575.7,12.114]
[1646920567124,0.01422336,2576.2,2576.0,0.94069786]
[1646920567327,0.01422336,2576.2,2576.1,12.114]
[1646920567528,0.97071,2576.7,2576.2,2.32532]
[1646920567725,0.06469065,2577.5,2576.2,2.32532]
[1646920567726,1.94135,2577.0,2576.4,0.384]
[1646920568127,0.06469065,2577.5,2576.4,1.2706161]
[1646920568326,0.06469065,2577.5,2576.2,4.261]
[1646920568327,2.91233,2577.4,2576.2,0.461]
[1646920568527,0.97063,2576.9,2576.2,0.461]
[1646920568734,0.1436,2577.3,2573.7,5.29900169]
[1646920568735,3.0,2576.6,2573.7,5.29900169]
[1646920568977,0.01251776,2575.4,2573.7,1.41631169]
[1646920569171,0.01251776,2575.4,2573.8,0.02976085]
[1646920569368,0.01251776,2575.4,2574.5,1.02688346]
[1646920569569,0.05982195,2575.6,2574.5,1.02688346]
[1646920569768,0.05982195,2575.6,2574.5,12.75688346]
[1646920569969,0.05982195,2575.6,2574.5,13.21788346]
[1646920570167,0.0159828,2575.9,2574.6,0.384]
[1646920570370,0.0159828,2575.9,2574.5,13.60188346]
[1646920570567,0.97131,2575.6,2575.1,1.0252802]
[1646920570772,0.0645679,2575.5,2575.1,1.0252802]
[1646920570973,2.0072279,2575.5,2575.1,1.0252802]
[1646920571172,1.94266,2575.5,2575.1,1.0252802]
[1646920571376,0.97131,2575.6,2575.1,1.0252802]
[1646920571572,0.0159828,2575.9,2575.1,1.0252802]
[1646920571772,0.07698873,2576.1,2575.1,13.7264102]
[1646920571974,0.01335006,2576.1,2575.1,14.8714102]
[1646920572175,0.01335006,2576.1,2575.1,15.8714102]
[1646920572377,0.06089912,2576.6,2575.9,1.09365812]
[1646920572576,0.01311913,2576.1,2575.9,1.09365812]
[1646920573123,0.01311913,2576.1,2575.2,0.07228956]
[1646920573326,0.06099275,2576.0,2575.2,0.07228956]
[1646920573524,1.03236015,2576.0,2574.8,0.07136895]
[1646920574029,1.61117986,2575.9,2574.8,0.07136895]
[1646920574226,2.9140774,2576.0,2575.3,0.99500797]
[1646920574425,0.06439708,2575.9,2574.8,0.75536895]
[1646920574625,0.06439708,2575.9,2574.8,0.684]
[1646920574826,0.06439708,2575.9,2574.9,0.06298277]
[1646920575028,0.06439708,2575.9,2574.6,1.0]
[1646920575029,4.5696722,2575.9,2574.6,1.0]
[1646920575229,0.384,2575.5,2574.6,1.0]
[1646920575429,0.06298887,2575.4,2573.9,0.06232781]
[1646920575629,0.06298887,2575.4,2574.0,1.0]
[1646920575630,0.384,2575.2,2574.0,1.0]
[1646920575830,0.384,2575.0,2574.0,1.0]
[1646920576031,0.384,2574.6,2574.0,1.0]
[1646920576232,0.384,2574.4,2574.0,1.0]
[1646920576483,0.384,2574.4,2573.4,1.12458944]
[1646920576484,1.71921079,2573.7,2573.4,1.12458944]
[1646920576680,0.06552144,2573.6,2573.4,1.12458944]
[1646920577075,0.06552144,2573.6,2573.3,0.05927564]
[1646920577076,1.03748144,2573.6,2573.3,0.05927564]
[1646920577276,0.0650782,2573.5,2573.3,0.05927564]
[1646920577477,0.0650782,2573.5,2573.4,0.00193539]
[1646920577478,2.0092882,2573.5,2573.4,0.00193539]
[1646920577676,1.94421,2573.5,2573.4,0.00193539]
[1646920578076,1.94421,2573.5,2573.4,1.19482108]
[1646920578278,1.94421,2573.5,2573.3,0.05927564]
[1646920578676,1.94421,2573.5,2573.3,0.06121107]
[1646920579075,2.32821,2573.5,2573.3,0.06121107]
[1646920579279,1.94421,2573.5,2573.3,0.06121107]
[1646920579477,1.94421,2573.5,2573.3,0.05927564]
[1646920579877,0.97196,2573.6,2573.3,0.06101756]
[1646920579878,0.97204,2573.6,2573.3,0.06101756]
[1646920580078,1.71921079,2573.7,2573.3,0.06101756]
[1646920580323,1.71921079,2573.7,2573.4,1.20661605]
[1646920580524,1.71921079,2573.7,2573.4,1.2763931]
[1646920580729,1.2113828,2574.9,2573.4,1.2763931]
[1646920580730,0.1590828,2574.9,2573.6,0.384]
[1646920580928,0.1590828,2574.9,2573.9,12.1772842]
[1646920580929,0.0159828,2574.9,2573.9,12.1772842]
[1646920581328,0.0159828,2574.9,2574.0,0.05982898]
[1646920582129,0.0159828,2574.9,2574.0,1.03146898]
[1646920582529,0.9875528,2574.9,2574.0,12.76146898]
[1646920582728,0.97157,2574.9,2574.2,1.94295]
[1646920582929,0.97157,2574.9,2574.3,0.45746011]
[1646920583328,0.97157,2574.9,2574.3,0.3]
[1646920583730,0.97157,2574.9,2574.2,2.90972348]
[1646920583989,0.97157,2574.9,2574.0,0.05773064]
[1646920584180,0.97157,2574.9,2573.4,1.94507347]
[1646920584181,1.35557,2574.9,2573.4,1.94507347]
[1646920584484,0.97157,2574.9,2573.7,0.07427378]
[1646920584880,0.97177,2574.4,2573.5,0.06511873]
[1646920585082,0.97177,2574.4,2573.6,1.0]
[1646920585478,0.97177,2574.4,2573.6,2.18532713]
[1646920585479,0.384,2574.3,2573.6,2.18532713]
[1646920585679,0.97177,2574.4,2573.6,2.18532713]
[1646920585880,1.27177,2574.4,2573.6,2.18532713]
[1646920586080,0.9719,2574.2,2573.6,2.18532713]
[1646920586681,0.9719,2574.2,2573.6,1.0]
[1646920587824,1.04039198,2574.0,2573.6,1.0]
[1646920588026,0.97168,2574.0,2573.6,1.0]
[1646920588427,2.3999828,2574.8,2573.8,12.114]
[1646920588428,2.21312166,2574.8,2573.8,12.114]
[1646920588626,2.21312166,2574.8,2573.7,1.16616324]
[1646920588627,0.05403886,2574.8,2574.1,0.97151]
[1646920588830,0.05403886,2574.8,2574.1,0.3]
[1646920589027,0.05403886,2574.8,2573.6,1.0]
[1646920589028,0.97152,2574.4,2573.6,1.0]
[1646920589227,0.06697831,2574.3,2573.6,1.0]
[1646920589532,0.06101196,2574.5,2573.4,0.06132486]
[1646920589725,0.06101196,2574.5,2573.9,0.87107282]
[1646920590129,0.97191,2574.2,2574.0,0.07195403]
[1646920590528,0.97191,2574.2,2573.9,1.17107282]
[1646920590726,0.97191,2574.2,2573.9,12.90107282]
[1646920590927,0.97191,2574.2,2574.0,12.76725049]
[1646920591144,0.97191,2574.2,2574.1,0.07558509]
[1646920591775,0.05419829,2575.1,2574.1,0.07558509]
[1646920591977,0.1452,2575.2,2574.8,1.16436348]
[1646920592574,0.06837436,2575.7,2574.8,1.16436348]
[1646920592776,0.97138,2575.0,2574.8,1.16436348]
[1646920593077,0.06404217,2575.3,2574.8,1.16436348]
[1646920593477,0.06404217,2575.3,2574.8,1.46436348]
[1646920593679,0.06404217,2575.3,2574.6,1.2714]
[1646920594076,0.97135,2575.1,2574.6,1.2714]
[1646920594276,0.97135,2575.1,2574.5,0.97145]
[1646920594476,0.06652708,2575.0,2574.5,0.97145]
[1646920594879,0.06652708,2575.0,2574.3,0.3]
[1646920595077,0.06652708,2575.0,2573.8,6.8691]
[1646920595318,0.06652708,2575.0,2573.8,0.3]
[1646920595319,1.94319,2575.0,2573.8,0.3]
[1646920595520,0.05697675,2574.8,2573.8,1.384]
[1646920595721,2.09898963,2575.4,2574.0,0.384]
[1646920595722,0.05518478,2575.3,2574.0,0.384]
[1646920595919,0.05518478,2575.3,2574.6,0.87122511]
[1646920596120,1.0,2575.4,2574.6,0.87122511]
[1646920596418,0.97142,2575.2,2574.6,0.87122511]
[1646920596619,0.06617154,2575.0,2574.6,0.87122511]
[1646920596818,1.9429,2575.4,2574.6,0.87122511]
[1646920596819,0.06678002,2575.3,2574.6,0.87122511]
[1646920597323,1.94298,2575.1,2574.6,0.87122511]
[1646920597518,0.05982727,2575.0,2574.6,0.87122511]
[1646920597718,0.05982727,2575.0,2574.3,0.06278141]
[1646920598125,1.03131727,2575.0,2574.3,1.03425141]
[1646920598329,2.00320221,2575.4,2574.4,12.114]
[1646920598525,0.05688028,2575.7,2574.7,12.114]
[1646920598725,0.0159828,2575.9,2574.8,0.461]
[1646920599174,0.0159828,2575.9,2575.1,1.09780209]
[1646920599374,0.0159828,2575.9,2575.1,3.03989209]
[1646920599573,0.0159828,2575.9,2575.1,3.33989209]
[1646920599574,0.9711,2575.7,2575.1,3.33989209]
[1646920599774,0.9711,2575.7,2575.1,1.39780209]
[1646920599775,0.06741395,2575.6,2575.1,1.39780209]
[1646920599979,0.06741395,2575.6,2575.1,0.9712]
[1646920600179,0.06741395,2575.6,2574.7,0.03428896]
[1646920600377,1.04028482,2575.5,2574.1,1.0]
[1646920600583,0.05891905,2575.3,2574.1,1.0]
[1646920600876,0.93436558,2574.9,2574.0,0.86861767]
[1646920601076,2.91486,2575.3,2574.0,0.86861767]
[1646920601077,0.06760797,2574.8,2574.0,0.86861767]
[1646920601277,0.44990643,2575.2,2574.0,0.86861767]
[1646920601477,0.05773123,2575.1,2573.7,0.0733722]
[1646920601686,0.05773123,2575.1,2573.4,1.0015623]
[1646920601687,0.384,2574.6,2573.4,1.0015623]
[1646920601880,0.384,2574.4,2573.4,1.0015623]
[1646920602078,3.55956864,2574.5,2573.4,1.0015623]
[1646920602079,0.384,2574.2,2573.4,1.0015623]
[1646920602279,0.20480033,2574.1,2573.4,1.0015623]
[1646920602482,1.25089992,2574.1,2573.2,3.03879755]
[1646920602730,1.02476545,2574.0,2573.2,3.03879755]
[1646920602931,0.0628178,2573.8,2573.2,3.03879755]
[1646920603532,1.0,2574.1,2573.2,3.03879755]
[1646920603533,0.05845247,2574.0,2573.2,3.03879755]
[1646920603729,0.384,2573.7,2573.2,3.03879755]
[1646920603930,1.0355687,2573.6,2573.2,3.03879755]
[1646920604131,0.06543188,2573.5,2573.2,3.03879755]
[1646920605137,0.06543188,2573.5,2573.3,0.06117253]
[1646920605934,0.06543188,2573.5,2573.3,0.05927564]
[1646920606336,1.35623,2573.5,2573.3,0.05927564]
[1646920606576,0.06911513,2573.4,2573.3,0.05927564]
[1646920606777,0.06911513,2573.4,2573.3,0.04582]
[1646920607788,0.384,2573.3,2573.2,2.99889705]
[1646920608184,0.384,2573.1,2572.8,0.0699337]
[1646920608387,0.06876538,2573.0,2572.8,0.0699337]
[1646920609284,0.384,2573.8,2572.8,0.0699337]
[1646920609485,0.384,2573.4,2572.8,0.0699337]
[1646920609686,0.06853196,2573.3,2572.8,0.0699337]
[1646920609886,0.06853196,2573.3,2572.8,0.07182522]
[1646920610920,3.196e-05,2573.3,2572.9,1.13313595]
[1646920611126,0.0159828,2574.1,2573.0,12.114]
[1646920611326,0.05512738,2574.5,2573.0,1.384]
[1646920611533,0.97187,2574.2,2572.9,1.43502736]
[1646920611724,0.04303888,2574.0,2572.9,1.43502736]
[1646920611925,0.97187,2574.2,2572.9,1.81902736]
[1646920612127,0.04866319,2574.4,2574.1,0.95936208]
[1646920612525,0.19500447,2575.0,2574.1,0.95936208]
[1646920612728,2.58331513,2574.9,2572.9,8.34273524]
[1646920612931,2.58331513,2574.9,2572.8,0.0699337]
[1646920612932,0.01223817,2574.6,2572.8,0.0699337]
[1646920613126,0.384,2574.4,2572.8,1.0419537]
[1646920613327,1.9438731,2574.7,2572.8,3.0699337]
[1646920613328,0.05162408,2574.3,2572.8,3.0699337]
[1646920613531,0.05162408,2574.3,2572.9,12.191]
[1646920613727,0.05193093,2574.9,2573.8,0.95896438]
[1646920613983,1.9436,2574.6,2573.8,0.95896438]
[1646920614171,0.04830928,2574.5,2573.8,1.25896438]
[1646920614678,1.2005145,2575.1,2573.9,0.07017109]
[1646920614875,7.22326457,2575.7,2574.8,0.94013038]
[1646920615080,7.22326457,2575.7,2574.0,0.384]
[1646920615081,0.384,2575.4,2574.0,0.384]
[1646920615279,1.99546096,2575.3,2574.0,0.3]
[1646920615487,0.384,2575.1,2573.9,0.07017109]
[1646920615776,0.05401466,2575.0,2573.9,0.07017109]
[1646920615977,0.5276,2575.4,2573.9,0.37017109]
[1646920616177,0.5276,2575.4,2574.0,0.97159]
[1646920616178,0.97159,2575.0,2574.0,0.97159]
[1646920616380,0.97159,2575.0,2573.4,2.017282]
[1646920616381,0.05016533,2574.8,2573.4,2.017282]
[1646920616578,1.61178449,2574.7,2573.4,0.00188635]
[1646920616777,0.384,2574.6,2573.4,0.00188635]
[1646920616977,0.05553033,2574.5,2573.4,0.08428227]
[1646920617177,0.05553033,2574.5,2573.6,0.96537185]
[1646920617379,0.97179,2574.5,2573.6,0.96537185]
[1646920617581,0.97176,2575.0,2573.6,0.96537185]
[1646920617582,0.1436,2575.4,2573.9,0.384]
[1646920617837,9.52834929,2576.0,2574.3,12.114]
[1646920617838,0.1436,2575.7,2574.3,12.114]
[1646920618038,0.971368,2575.9,2574.0,3.5]
[1646920618039,1.61139093,2575.5,2574.0,3.5]
[1646920618238,1.66063489,2575.5,2574.1,0.07386458]
[1646920618437,0.04651588,2575.3,2574.5,1.11030239]
[1646920618738,0.04373789,2575.5,2574.5,3.35312989]
[1646920618936,1.61143074,2575.4,2574.5,2.15714241]
[1646920619138,1.61143074,2575.4,2574.5,2.38176239]
[1646920619343,1.61143074,2575.4,2574.6,0.08149329]
[1646920619538,0.1436,2575.9,2574.6,0.08149329]
[1646920619539,0.19322274,2575.9,2574.6,0.08149329]
[1646920619739,1.61117982,2575.8,2575.3,0.09058299]
[1646920620038,1.11477,2576.0,2575.3,0.09058299]
[1646920620039,1.61117982,2575.7,2575.3,0.09058299]
[1646920620337,1.11477,2576.0,2575.3,0.09058299]
[1646920620541,1.61108446,2575.9,2575.2,1.94221]
[1646920620739,1.61108446,2575.9,2575.3,0.08132368]
[1646920620740,0.97124,2575.7,2575.3,0.08132368]
[1646920620936,0.97124,2575.7,2574.9,2.3262062]
[1646920620937,0.97124,2575.7,2575.0,0.08697861]
[1646920621140,1.61134571,2575.6,2575.0,0.08697861]
[1646920621338,1.61134571,2575.6,2574.9,0.08869984]
[1646920621587,1.61134571,2575.5,2574.9,0.08869984]
[1646920621783,2.86208837,2575.8,2575.0,0.0055]
[1646920621985,0.97148,2575.6,2575.0,0.0055]
[1646920622583,3.55450738,2575.5,2575.0,0.0055]
[1646920622784,1.61143668,2575.4,2575.0,0.0055]
[1646920623285,0.04967316,2575.3,2575.0,0.0055]
[1646920623488,1.99273316,2575.3,2575.0,0.0055]
[1646920623688,0.9715,2575.4,2575.0,0.0055]
[1646920623885,0.6715,2575.4,2575.0,0.0055]
[1646920624388,1.61150466,2575.3,2575.0,0.0055]
[1646920624588,3.93878466,2575.3,2575.0,0.0055]
[1646920624789,0.04320523,2575.1,2575.0,0.0055]
[1646920625231,0.384,2574.8,2573.8,1.0]
[1646920625429,0.20524012,2574.7,2573.8,1.0]
[1646920625636,0.05879115,2574.3,2573.8,1.0]
[1646920625831,0.44279115,2574.3,2573.8,1.0]
[1646920626130,0.05793547,2574.2,2573.4,0.0015238]
[1646920626331,0.384,2574.1,2573.4,0.0015238]
[1646920626531,0.97206,2574.2,2572.8,2.0139537]
[1646920626532,0.04933423,2574.0,2572.9,0.384]
[1646920626831,0.04933423,2574.0,2573.4,0.0015238]
[1646920626832,0.05436105,2574.0,2573.4,0.0015238]
[1646920627529,0.19796105,2574.0,2573.4,0.0015238]
[1646920627833,0.19796105,2574.0,2573.1,0.95032948]
[1646920628034,2.14201105,2574.0,2573.4,0.00154349]
[1646920628237,0.05829655,2573.7,2573.4,0.00154349]
[1646920629073,0.05829655,2573.7,2573.1,0.95032948]
[1646920629279,0.97211,2573.6,2573.4,0.00154349]
[1646920629685,0.11590435,2574.1,2573.4,0.00154349]
[1646920629686,2.05973435,2574.1,2573.4,0.00154349]
[1646920630479,2.05973435,2574.1,2573.2,0.07312324]
[1646920630480,1.02565966,2573.9,2573.2,0.07312324]
[1646920630679,1.02565966,2573.9,2573.4,0.00154349]
[1646920630680,0.97192,2573.9,2573.4,0.00154349]
[1646920630886,0.05768029,2573.7,2573.4,0.00154349]
[1646920631282,1.94425,2573.8,2572.8,1.0699337]
[1646920631283,0.00428569,2573.2,2572.8,1.0699337]
[1646920631684,0.97658569,2573.2,2572.8,0.0699337]
[1646920631880,1.03927763,2573.2,2572.8,0.0699337]
[1646920632280,0.00428569,2573.2,2572.8,0.0699337]
[1646920633928,0.00428569,2573.2,2572.8,0.3199337]
[1646920634129,0.00428569,2573.2,2573.0,0.46193207]
[1646920634327,0.00428569,2573.2,2573.0,13.46376207]
[1646920634528,0.00428569,2573.2,2573.1,17.04683]
[1646920634727,8.569e-05,2573.2,2573.1,17.04683]
[1646920634927,8.569e-05,2573.2,2573.1,18.04683]
[1646920635126,8.569e-05,2573.2,2573.1,2.81683]
[1646920635428,8.569e-05,2573.2,2573.1,20.04683]
[1646920635632,1.6655935,2574.8,2573.3,12.114]
[1646920635633,0.05358922,2574.8,2573.3,12.114]
[1646920635927,1.60978752,2575.1,2573.3,12.114]
[1646920635928,0.05322656,2575.0,2574.1,0.9714553]
[1646920636139,0.05202705,2575.3,2574.9,1.22507647]
[1646920636575,0.01183421,2575.1,2574.2,0.06431443]
[1646920637375,0.05018041,2575.4,2574.3,0.97145]
[1646920637577,0.01183668,2575.2,2574.3,1.35545]
[1646920637783,0.01183668,2575.2,2574.4,0.07537448]
[1646920637979,0.01183668,2575.2,2574.1,0.36645219]
[1646920638181,0.01183668,2575.2,2574.3,0.25]
[1646920638481,0.06143579,2575.2,2574.1,0.36645219]
[1646920638683,0.06143579,2575.2,2574.6,0.9169376]
[1646920638879,0.07327247,2575.2,2574.6,0.9169376]